bitfinex/quotes_SOLUSD_20241021
["timestamp","ask_amount","ask_price","bid_price","bid_amount"]
[1729518895656,6.1732,161.99,161.93,6.1751]
[1729518895964,6.1716,162.03,161.93,0.1]
[1729518896253,1.40309645,162.05,161.93,0.1]
[1729518896560,6.1713,162.04,161.99,6.1731]
[1729518896862,6.1713,162.04,161.87,6.0713]
[1729518896863,6.2806,161.8,161.71,85.18312745]
[1729518897050,6.28,161.81,161.71,85.18312745]
[1729518897259,0.1,161.81,161.71,85.18312745]
[1729518897434,1.072,161.84,161.71,85.18312745]
[1729518897435,6.2818,161.77,161.71,85.18312745]
[1729518897630,6.1793,161.83,161.71,85.18312745]
[1729518897830,30.0,161.75,161.72,0.06025145]
[1729518898063,30.0,161.75,161.71,91.36662745]
[1729518898354,30.0,161.75,161.71,85.2433789]
[1729518898559,30.0,161.75,161.73,6.1829]
[1729518898940,30.0,161.75,161.72,0.06025145]
[1729518899260,30.0,161.75,161.71,85.18312745]
[1729518899261,0.1512159,161.74,161.73,6.32266336]
[1729518899953,23.776884,161.72,161.71,37.71603654]
[1729518900154,30.0,161.72,161.71,37.71603654]
[1729518900336,30.1512159,161.72,161.71,37.71603654]
[1729518900845,36.1835,161.72,161.71,37.71603654]
[1729518901049,29.93974855,161.72,161.71,37.71603654]
[1729518901364,0.1,161.83,161.71,37.71603654]
[1729518901656,15.4492,161.82,161.71,37.56113008]
[1729518901835,6.1818,161.77,161.71,37.56113008]
[1729518902158,6.18,161.82,161.71,37.62138153]
[1729518902333,6.18,161.82,161.72,0.06025145]
[1729518902534,6.18,161.82,161.67,15.4629]
[1729518902535,6.1881,161.6,161.59,2.3e-06]
[1729518902756,6.185,161.69,161.55,15.8593]
[1729518902938,1.07400925,161.71,161.55,15.8593]
[1729518903143,13.3334,161.58,161.56,22.1027118]
[1729518903363,1.07400925,161.71,161.61,0.07941191]
[1729518903552,1.07400925,161.71,161.68,6.1847]
[1729518903752,1.07400925,161.71,161.69,21.646]
[1729518904535,1.07400925,161.71,161.7,23.776884]
[1729518904964,0.68890925,161.71,161.7,43.776884]
[1729518905260,0.1,161.95,161.74,23.85629591]
[1729518905437,0.1,161.97,161.78,0.07941191]
[1729518905633,6.28908157,161.94,161.84,6.1787]
[1729518905849,6.28908157,161.94,161.81,6.5691]
[1729518906053,6.31370294,161.97,161.87,6.1776]
[1729518906363,0.1,161.91,161.78,0.06029706]
[1729518906571,0.1,161.91,161.74,6.5691]
[1729518906572,15.5425,161.9,161.77,0.06029706]
[1729518906877,23.776884,161.89,161.75,0.06029706]
[1729518907175,6.1799,161.82,161.74,6.62939706]
[1729518907384,6.1806,161.8,161.74,6.5691]
[1729518907590,0.14741562,161.79,161.74,6.62939706]
[1729518907754,0.14741562,161.79,161.76,0.06029706]
[1729518908154,0.14741562,161.79,161.67,0.06029706]
[1729518908456,0.14741562,161.79,161.66,6.5004]
[1729518908457,6.1837,161.72,161.66,6.5004]
[1729518908679,0.1,161.78,161.66,6.5004]
[1729518908875,0.14741562,161.71,161.66,6.5004]
[1729518910167,0.08711856,161.71,161.66,6.5004]
[1729518910780,0.08711856,161.71,161.66,6.0004]
[1729518910983,0.08711856,161.71,161.63,15.52719706]
[1729518911366,0.08711856,161.71,161.64,0.06029706]
[1729518912056,0.08711856,161.71,161.65,0.06029706]
[1729518912467,0.08711856,161.71,161.66,0.06029706]
[1729518912870,0.08711856,161.71,161.67,0.06029706]
[1729518913273,0.08711856,161.71,161.69,0.06029706]
[1729518913457,6.12080294,161.79,161.7,0.06029706]
[1729518913778,1.07186009,161.83,161.68,0.06029706]
[1729518913988,15.5478,161.84,161.71,0.06029706]
[1729518914159,6.1805,161.8,161.71,0.06029706]
[1729518914362,6.181,161.79,161.71,0.06029706]
[1729518914787,6.1802,161.81,161.73,0.06029706]
[1729518915284,6.5691,161.9,161.77,0.06029706]
[1729518915482,6.1782,161.86,161.77,0.06029706]
[1729518915868,20.0,161.96,161.81,0.06029706]
[1729518916071,6.1741,161.97,161.88,6.1772]
[1729518916392,6.29349029,161.99,161.92,6.23599706]
[1729518916564,6.29349029,161.99,161.92,6.1757]
[1729518916972,6.23319323,161.99,161.92,5.47471481]
[1729518917174,6.23319323,161.99,161.92,5.53501187]
[1729518917560,6.23319323,161.99,161.92,6.23599706]
[1729518917896,0.6082023,162.0,161.9,0.06029706]
[1729518918197,0.1,161.98,161.83,0.06029706]
[1729518918379,6.1767,161.9,161.83,0.06029706]
[1729518918568,6.1767,161.9,161.82,6.23979706]
[1729518918880,17.906558,161.97,161.79,6.384]
[1729518918881,6.176,161.92,161.83,6.23929706]
[1729518919085,6.176,161.92,161.79,6.384]
[1729518919086,2.471658,161.97,161.79,6.384]
[1729518919299,6.1779,161.87,161.79,6.384]
[1729518919463,6.1786,161.85,161.79,6.384]
[1729518919664,23.776884,161.93,161.79,6.384]
[1729518919873,6.1762,161.91,161.79,6.384]
[1729518920075,6.178,161.87,161.79,6.384]
[1729518920472,6.11770294,161.87,161.8,6.1803]
[1729518920782,15.4406,161.91,161.75,15.43060897]
[1729518920985,6.1788,161.85,161.76,0.13970897]
[1729518921164,6.178,161.87,161.79,6.1807]
[1729518921363,6.1783,161.86,161.79,6.1807]
[1729518921785,15.4369,161.95,161.79,0.06029706]
[1729518921988,6.1769,161.9,161.82,6.1795]
[1729518922190,15.4369,161.95,161.82,6.1795]
[1729518922370,6.1767,161.9,161.83,6.1792]
[1729518922967,15.4388,161.93,161.81,6.18]
[1729518923163,18.006658,161.97,161.81,0.06029706]
[1729518923364,2.571658,161.97,161.83,0.06029706]
[1729518923586,2.471658,161.97,161.83,0.06029706]
[1729518924292,2.471658,161.97,161.82,0.13970897]
[1729518924590,6.1762,161.92,161.84,0.06029706]
[1729518924789,6.1755,161.93,161.86,6.1781]
[1729518925169,15.4331,161.99,161.88,6.1773]
[1729518925369,6.1741,161.97,161.89,6.1766]
[1729518925585,6.1781,162.01,161.88,0.06029706]
[1729518925787,6.1738,161.98,161.9,6.1766]
[1729518925988,6.1738,161.98,161.91,6.1762]
[1729518926794,6.7812023,162.0,161.94,6.175]
[1729518926982,0.6082023,162.0,161.94,6.175]
[1729518927187,6.7813023,162.0,161.92,6.1758]
[1729518927385,6.1735,161.99,161.92,6.1758]
[1729518927693,6.1735,161.99,161.93,6.1754]
[1729518928202,0.6082023,162.0,161.91,6.1759]
[1729518928375,6.1764,161.91,161.82,6.1797]
[1729518928577,23.876884,161.99,161.8,6.19269706]
[1729518928792,23.876884,161.99,161.84,6.1789]
[1729518928987,6.1763,161.91,161.85,6.1784]
[1729518929514,6.1769,161.9,161.83,6.1792]
[1729518929711,6.1769,161.9,161.81,0.07941191]
[1729518929997,6.1761,161.92,161.85,6.1784]
[1729518930204,6.1761,161.92,161.67,283.6612142]
[1729518930205,30.868,161.98,161.74,0.06029706]
[1729518930492,23.776884,161.99,161.76,0.07941191]
[1729518930493,6.1792,161.84,161.76,0.07941191]
[1729518930695,6.177,161.9,161.83,6.1791]
[1729518930912,6.177,161.9,161.79,0.06029706]
[1729518930913,0.1,161.98,161.85,6.1782]
[1729518931099,0.1,161.98,161.8,0.13970897]
[1729518931288,6.1764,161.91,161.8,0.13970897]
[1729518931487,6.1766,161.9,161.8,0.06029706]
[1729518931711,6.1759,161.92,161.81,0.06029706]
[1729518931888,6.1763,161.91,161.8,0.07941191]
[1729518932212,0.1,161.98,161.75,15.2909]
[1729518932213,6.1774,161.89,161.82,6.1794]
[1729518932415,6.1774,161.89,161.78,0.07941191]
[1729518932416,6.1774,161.88,161.8,0.07941191]
[1729518932622,6.177,161.9,161.84,6.1789]
[1729518932814,6.177,161.9,161.81,6.18]
[1729518932992,6.177,161.9,161.8,0.07941191]
[1729518933203,0.1,161.98,161.76,20.0]
[1729518933204,6.1747,161.95,161.81,0.13970897]
[1729518933394,15.4345,161.98,161.82,0.07941191]
[1729518933717,6.1744,161.96,161.89,6.1767]
[1729518933896,0.6082023,162.0,161.92,6.1758]
[1729518934220,6.1735,161.99,161.92,6.1757]
[1729518934425,0.6082023,162.0,161.92,0.06029706]
[1729518934716,0.6082023,162.0,161.94,6.1751]
[1729518935018,0.6082023,162.0,161.91,0.06029706]
[1729518935233,0.6082023,162.0,161.99,6.1732]
[1729518935721,0.6082023,162.0,161.99,7.40716981]
[1729518936219,0.6082023,162.17,162.02,0.06029706]
[1729518936428,0.6082023,162.17,162.02,1.29376127]
[1729518936601,0.6082023,162.17,162.03,0.06029706]
[1729518936806,0.6082023,162.17,162.03,23.776884]
[1729518937109,6.7748023,162.17,162.11,6.1685]
[1729518937610,0.6082023,162.17,162.09,0.13970897]
[1729518937811,0.6082023,162.17,162.09,1.37268729]
[1729518938012,0.6082023,162.17,162.15,6.167]
[1729518938322,0.6082023,162.17,162.09,1.31239023]
[1729518938499,0.6082023,162.17,162.1,0.07941191]
[1729518938706,0.6082023,162.17,162.15,6.167]
[1729518940930,0.6082023,162.17,162.15,6.24641191]
[1729518941221,0.6082023,162.17,162.16,6.1667]
[1729518942022,0.6082023,162.17,162.16,6.24611191]
[1729518943199,0.6082023,162.17,162.16,30.08329297]
[1729518943421,6.1606,162.32,162.22,6.1642]
[1729518943614,0.6082023,162.33,162.24,6.1634]
[1729518943615,6.7685023,162.33,162.24,6.1634]
[1729518944230,0.6082023,162.33,162.19,0.07941191]
[1729518944431,0.6082023,162.33,162.2,0.07941191]
[1729518944736,0.6082023,162.33,162.27,6.1625]
[1729518944922,6.7686023,162.33,162.21,0.07941191]
[1729518945128,0.1,162.39,162.25,6.1633]
[1729518945129,6.1598,162.35,162.25,6.1633]
[1729518945325,6.1598,162.35,162.26,6.1629]
[1729518945326,0.4473456,162.33,162.26,6.1629]
[1729518945509,0.4473456,162.33,162.2,0.07941191]
[1729518945510,0.4473456,162.33,162.27,6.1624]
[1729518946426,0.4473456,162.33,162.21,0.13970897]
[1729518946808,0.4473456,162.33,162.27,6.1623]
[1729518947232,0.4473456,162.33,162.21,0.13970897]
[1729518947543,0.4473456,162.33,162.2,0.07941191]
[1729518947710,0.4473456,162.33,162.2,0.13970897]
[1729518948110,0.4473456,162.33,162.21,0.13970897]
[1729518948533,0.4473456,162.33,162.22,0.07941191]
[1729518948728,0.4473456,162.33,162.27,6.1623]
[1729518948921,0.4473456,162.33,162.28,6.1621]
[1729518949230,0.4473456,162.33,162.23,0.07941191]
[1729518949539,0.4473456,162.33,162.31,6.161]
[1729518949745,0.4473456,162.33,162.24,0.07941191]
[1729518950034,0.4473456,162.33,162.31,6.1606]
[1729518950716,0.4473456,162.33,162.32,6.1606]
[1729518954439,0.6367086,162.47,162.39,0.07941191]
[1729518954651,0.6367086,162.47,162.45,6.1555]
[1729518954815,0.6367086,162.47,162.46,6.1553]
[1729518956350,6.1514,162.62,162.44,0.07941191]
[1729518956641,1.16410815,162.63,162.44,0.07941191]
[1729518956642,6.1489,162.63,162.46,6.42680897]
[1729518956820,6.1489,162.63,162.55,6.1516]
[1729518957219,15.8745,162.66,162.48,0.13970897]
[1729518957422,15.8745,162.66,162.5,23.776884]
[1729518957629,0.1,162.7,162.5,23.85629591]
[1729518957828,6.1471,162.68,162.59,6.1502]
[1729518958140,1.06353761,162.69,162.57,6.1509]
[1729518958141,6.1478,162.66,162.57,6.1509]
[1729518958350,1.06353761,162.69,162.57,6.1509]
[1729518958521,6.1481,162.66,162.51,0.07941191]
[1729518958838,6.1475,162.67,162.59,6.1503]
[1729518959340,1.16353761,162.69,162.5,23.85629591]
[1729518959646,6.15,162.6,162.48,6.1544]
[1729518959827,0.1,162.68,162.47,0.07941191]
[1729518960146,6.1491,162.63,162.49,0.07941191]
[1729518960333,23.976884,162.63,162.41,0.07941191]
[1729518960532,6.1507,162.59,162.5,6.1534]
[1729518960732,6.1507,162.59,162.51,6.1532]
[1729518961652,23.776884,162.63,162.54,6.1521]
[1729518961953,15.4705,162.65,162.54,6.1521]
[1729518962149,15.4705,162.65,162.55,6.1518]
[1729518962351,6.149,162.63,162.56,6.1512]
[1729518962556,6.1499,162.61,162.54,6.1523]
[1729518962848,1.06353761,162.69,162.5,0.07941191]
[1729518963142,0.1,162.68,162.49,0.07941191]
[1729518963369,15.3685,162.67,162.55,6.1519]
[1729518963659,15.4685,162.67,162.55,6.1519]
[1729518963823,15.4685,162.67,162.4,20.0]
[1729518963824,6.1489,162.63,162.49,0.07941191]
[1729518964025,1.26353761,162.69,162.49,0.07941191]
[1729518964224,6.7852086,162.64,162.58,6.1507]
[1729518964463,6.1489,162.63,162.57,6.1511]
[1729518964629,0.6367086,162.64,162.57,6.1511]
[1729518964825,6.7852086,162.64,162.58,6.1507]
[1729518965543,6.7852086,162.64,162.51,6.1534]
[1729518965746,0.6367086,162.64,162.59,6.1503]
[1729518966053,20.96674621,162.71,162.52,0.07941191]
[1729518966234,6.1476,162.67,162.61,6.1493]
[1729518966428,6.1476,162.67,162.62,6.1492]
[1729518966627,5.60144621,162.71,162.63,6.1487]
[1729518966938,0.1,162.73,162.65,6.1481]
[1729518967248,6.3443,162.74,162.65,6.1168]
[1729518967453,6.7788086,162.81,162.74,6.1445]
[1729518967626,0.6367086,162.81,162.66,0.07941191]
[1729518967823,0.6367086,162.81,162.65,6.1168]
[1729518967824,0.1,162.8,162.65,6.1168]
[1729518968029,6.144,162.76,162.7,6.146]
[1729518968223,6.1436,162.77,162.65,6.1168]
[1729518968448,0.8367086,162.81,162.65,6.1168]
[1729518968751,6.1436,162.78,162.71,6.1458]
[1729518968934,0.6367086,162.81,162.65,6.1168]
[1729518969133,6.1436,162.77,162.71,6.1456]
[1729518969327,0.6367086,162.81,162.66,23.776884]
[1729518969532,6.1425,162.8,162.73,6.1449]
[1729518969729,0.6367086,162.81,162.65,7.34590617]
[1729518969937,6.1429,162.79,162.73,6.1449]
[1729518970138,0.6367086,162.81,162.65,7.34590617]
[1729518970343,0.6367086,162.81,162.67,6.1474]
[1729518970551,0.6367086,162.81,162.67,0.07941191]
[1729518970745,0.6367086,162.81,162.66,20.07941191]
[1729518971048,0.6367086,162.81,162.67,0.07941191]
[1729518971249,0.6367086,162.81,162.67,25.00565508]
[1729518971726,0.6367086,162.81,162.67,25.08506699]
[1729518972349,0.6367086,162.81,162.7,0.07941191]
[1729518972551,0.6367086,162.81,162.7,1.30781154]
[1729518972750,0.6367086,162.81,162.71,23.85629591]
[1729518972952,0.6367086,162.81,162.72,1.22827922]
[1729518973154,0.6367086,162.81,162.73,23.83718106]
[1729518973369,0.6367086,162.81,162.75,23.85629591]
[1729518973534,0.6367086,162.81,162.76,1.22802705]
[1729518973742,8.6e-06,162.81,162.77,23.776884]
[1729518974040,8.6e-06,162.81,162.75,23.83718106]
[1729518974041,8.6e-06,162.81,162.75,0.07941191]
[1729518974438,8.6e-06,162.81,162.73,0.07941191]
[1729518974757,8.6e-06,162.81,162.74,23.85629591]
[1729518974953,8.6e-06,162.81,162.76,23.776884]
[1729518975154,8.6e-06,162.81,162.77,1.30732031]
[1729518975356,8.6e-06,162.81,162.77,1.2279084]
[1729518975553,8.6e-06,162.81,162.77,21.2279084]
[1729518975864,0.6367086,162.98,162.8,23.85629591]
[1729518976158,0.6367086,162.98,162.52,30.01914443]
[1729518976159,15.3591,162.77,162.63,6.0537]
[1729518976349,6.1458,162.72,162.63,6.0537]
[1729518976544,6.1459,162.71,162.63,6.0537]
[1729518976857,6.146,162.71,162.63,6.0537]
[1729518977040,0.1,162.76,162.61,15.4958]
[1729518977240,0.1,162.74,162.56,6.0537]
[1729518977438,23.47206111,162.73,162.56,6.13311191]
[1729518977660,6.1466,162.7,162.56,6.0537]
[1729518977960,6.1466,162.7,162.56,6.13311191]
[1729518978137,6.1468,162.69,162.56,6.13311191]
[1729518978538,6.1462,162.71,162.6,6.1499]
[1729518978840,0.1,162.74,162.56,6.0537]
[1729518979048,0.1,162.75,162.6,6.1498]
[1729518979258,31.06375039,162.8,162.56,6.0537]
[1729518979259,6.1451,162.73,162.56,6.0537]
[1729518979564,6.1472,162.68,162.58,6.1508]
[1729518979743,6.1472,162.68,162.56,6.0537]
[1729518979943,6.1472,162.68,162.58,6.1505]
[1729518980348,15.4619,162.74,162.56,6.0537]
[1729518980349,6.1465,162.7,162.56,6.0537]
[1729518980758,6.1459,162.71,162.61,6.1494]
[1729518980976,6.146,162.71,162.61,6.1494]
[1729518981160,0.1,162.74,162.56,6.0537]
[1729518981362,6.1475,162.67,162.58,6.1507]
[1729518981667,6.1469,162.69,162.56,6.0537]
[1729518981872,15.3628,162.73,162.56,6.0537]
[1729518982065,6.1462,162.7,162.61,6.1496]
[1729518982770,15.3619,162.74,162.57,23.776884]
[1729518982967,6.1462,162.7,162.57,23.85629591]
[1729518983281,15.3589,162.78,162.58,20.0]
[1729518983513,6.144,162.76,162.61,23.85629591]
[1729518983786,6.144,162.76,162.63,23.776884]
[1729518983958,6.1436,162.78,162.64,20.0]
[1729518984290,6.1438,162.77,162.65,23.776884]
[1729518984665,30.0,162.8,162.66,20.0]
[1729518984869,15.736,162.87,162.67,23.776884]
[1729518985068,6.143,162.79,162.67,23.776884]
[1729518985274,0.1,162.86,162.67,23.776884]
[1729518985483,6.1435,162.78,162.67,23.776884]
[1729518985686,6.1433,162.78,162.67,23.776884]
[1729518986080,6.1445,162.75,162.61,0.07941191]
[1729518986276,6.1445,162.75,162.63,0.07941191]
[1729518986477,0.1,162.79,162.59,0.07941191]
[1729518986791,0.1,162.8,162.59,0.07941191]
[1729518986987,6.1466,162.7,162.59,0.07941191]
[1729518987485,54.493184,162.78,162.59,0.07941191]
[1729518987486,15.36,162.76,162.59,0.07941191]
[1729518987883,6.1459,162.71,162.59,0.07941191]
[1729518988074,6.1453,162.73,162.58,0.07941191]
[1729518988470,15.3581,162.78,162.57,20.0]
[1729518988670,6.1459,162.71,162.57,20.0]
[1729518988892,6.1459,162.71,162.64,250.4791]
[1729518989694,6.1467,162.69,162.64,250.4791]
[1729518990001,43.876884,162.8,162.64,250.4791]
[1729518990002,6.1481,162.65,162.64,250.4791]
[1729518990291,15.3659,162.7,162.64,250.4791]
[1729518990477,6.1481,162.65,162.64,250.4791]
[1729518995094,6.0095,162.78,162.64,250.4791]
[1729518995491,6.1447,162.75,162.69,6.1465]
[1729518995698,16.4411,162.81,162.64,250.4791]
[1729518995900,6.1428,162.8,162.67,23.776884]
[1729518996096,6.1428,162.8,162.69,23.776884]
[1729518996507,6.1429,162.79,162.69,23.776884]
[1729518996811,15.3522,163.03,162.84,23.776884]
[1729518997095,0.7472432,163.04,162.88,6.1394]
[1729518997096,0.8472432,163.04,162.88,6.1394]
[1729518997277,0.9472432,163.04,162.84,23.776884]
[1729518997480,0.1,163.03,162.87,6.1398]
[1729518997677,6.1366,162.96,162.87,15.3494]
[1729518998599,6.1355,162.99,162.87,15.3494]
[1729518998799,6.138,162.92,162.82,15.3542]
[1729518998986,0.2,163.01,162.79,43.776884]
[1729518999192,6.1367,162.96,162.85,6.1404]
[1729518999397,15.5374,163.0,162.84,15.3516]
[1729518999648,0.2,162.97,162.8,15.3561]
[1729518999790,20.0,162.94,162.8,21.4985]
[1729518999991,20.0,162.94,162.8,15.3561]
[1729519000187,20.0,162.94,162.8,21.4984]
[1729519000188,6.1389,162.9,162.8,21.4984]
[1729519000382,20.0,162.94,162.8,15.3561]
[1729519000587,6.1392,162.89,162.8,21.4983]
[1729519000914,23.776884,162.93,162.77,6.1434]
[1729519001205,6.1405,162.86,162.76,6.1439]
[1729519001504,6.1409,162.85,162.76,6.1439]
[1729519001677,20.0,162.88,162.75,15.3608]
[1729519001879,6.142,162.82,162.72,6.1453]
[1729519002099,6.1427,162.8,162.72,6.1453]
[1729519002304,20.1,162.86,162.65,0.07941191]
[1729519002493,20.0,162.83,162.64,257.01101191]
[1729519002686,20.0,162.8,162.64,256.9316]
[1729519003300,6.1433,162.78,162.64,256.9316]
[1729519003695,6.1433,162.78,162.64,257.01101191]
[1729519003894,6.1433,162.78,162.64,256.9316]
[1729519004411,6.1433,162.78,162.7,6.146]
[1729519004587,20.0,162.85,162.65,23.85629591]
[1729519004912,0.2,162.92,162.69,0.07941191]
[1729519005088,6.1405,162.86,162.78,6.1431]
[1729519005405,15.3471,162.9,162.77,15.3588]
[1729519005584,6.141,162.84,162.77,15.3588]
[1729519005787,15.3471,162.9,162.67,23.776884]
[1729519005788,6.1424,162.81,162.73,6.145]
[1729519005985,6.1424,162.81,162.74,6.1446]
[1729519006208,15.4487,162.88,162.68,20.0]
[1729519006209,20.0,162.87,162.68,20.0]
[1729519006413,6.1427,162.8,162.7,6.1462]
[1729519006614,20.0,162.8,162.74,6.1446]
[1729519006791,6.1421,162.81,162.74,6.1446]
[1729519006986,6.1425,162.8,162.74,6.1446]
[1729519007917,20.0,162.84,162.72,15.363]
[1729519008101,6.143,162.79,162.72,15.363]
[1729519008305,35.3524,162.84,162.74,6.1447]
[1729519008488,6.1425,162.8,162.74,6.1447]
[1729519008806,6.1413,162.83,162.75,6.1443]
[1729519008987,6.1417,162.82,162.76,6.1437]
[1729519009186,6.1421,162.81,162.75,15.3608]
[1729519009387,6.1416,162.83,162.77,6.1435]
[1729519009790,39.126484,162.87,162.75,21.5049]
[1729519010007,6.1422,162.81,162.75,21.5049]
[1729519010917,6.1422,162.81,162.76,6.1439]
[1729519011312,23.776884,162.85,162.68,20.0]
[1729519011523,6.1425,162.8,162.74,6.1444]
[1729519011836,6.143,162.79,162.73,21.5072]
[1729519012338,20.1,162.83,162.64,106.4525]
[1729519012526,6.1442,162.76,162.7,6.1462]
[1729519012722,6.1455,162.72,162.64,100.0]
[1729519012937,43.776884,162.77,162.64,100.0]
[1729519013316,6.147,162.69,162.64,100.0]
[1729519013517,0.1,162.76,162.64,100.0]
[1729519013518,6.147,162.68,162.64,100.0]
[1729519013738,6.1467,162.69,162.64,100.0]
[1729519014439,6.1478,162.66,162.64,100.0]
[1729519015019,15.3628,162.73,162.64,100.0]
[1729519015234,6.1462,162.7,162.64,100.0]
[1729519015420,0.2,162.79,162.64,100.0]
[1729519015624,15.357,162.8,162.7,6.1459]
[1729519015838,6.1445,162.75,162.7,6.1459]
[1729519016114,6.1445,162.75,162.64,100.0]
[1729519016115,6.1461,162.71,162.65,6.1481]
[1729519016335,6.1467,162.69,162.64,106.1485]
[1729519016541,0.2,162.77,162.64,100.0]
[1729519016836,6.1447,162.74,162.64,100.0]
[1729519017027,6.1475,162.67,162.64,100.0]
[1729519017216,15.3635,162.73,162.64,100.0]
[1729519017217,6.1471,162.68,162.64,100.0]
[1729519018224,6.1475,162.67,162.64,100.0]
[1729519018629,6.1469,162.69,162.64,100.0]
[1729519018838,20.0,162.72,162.64,100.0]
[1729519019243,6.1473,162.68,162.64,100.0]
[1729519019630,20.0,162.72,162.64,100.0]
[1729519019831,6.1466,162.69,162.64,106.1485]
[1729519020045,15.3602,162.76,162.67,6.1474]
[1729519020226,6.1455,162.72,162.67,6.1474]
[1729519020424,0.1,162.79,162.64,100.0]
[1729519020651,6.1451,162.73,162.65,6.1481]
[1729519020836,6.1451,162.73,162.64,100.0]
[1729519020837,6.1451,162.73,162.67,6.147]
[1729519021350,20.1,162.78,162.65,6.1481]
[1729519021553,20.1,162.76,162.64,100.0]
[1729519021741,6.1464,162.7,162.65,6.1481]
[1729519022132,6.1469,162.69,162.64,106.1484]
[1729519022331,15.3619,162.74,162.64,100.0]
[1729519022527,15.3619,162.74,162.64,106.1483]
[1729519022829,6.1465,162.7,162.65,6.148]
[1729519023034,15.3638,162.72,162.64,100.0]
[1729519023249,6.1481,162.65,162.64,100.0]
[1729519023428,26.1481,162.65,162.64,100.0]
[1729519023631,20.0,162.65,162.64,100.0]
[1729519023842,6.2725,162.7,162.64,100.0]
[1729519024049,6.1464,162.7,162.65,6.1481]
[1729519024439,6.2725,162.76,162.64,100.0]
[1729519024644,6.1459,162.71,162.65,6.1481]
[1729519024931,6.1463,162.7,162.65,21.5185]
[1729519025553,6.1459,162.71,162.66,6.1477]
[1729519025767,6.1456,162.72,162.67,6.1471]
[1729519025936,6.2725,162.76,162.64,100.0]
[1729519026141,6.1454,162.73,162.68,6.1469]
[1729519026341,6.1455,162.72,162.67,6.1473]
[1729519026638,6.2725,162.76,162.64,100.0]
[1729519026844,6.147,162.69,162.64,100.0]
[1729519027335,6.1462,162.7,162.65,6.1481]
[1729519027536,6.2725,162.76,162.64,100.0]
[1729519027537,20.0,162.73,162.64,100.0]
[1729519027750,6.1451,162.73,162.64,100.0]
[1729519027936,15.3583,162.78,162.64,100.0]
[1729519028143,6.1449,162.74,162.64,100.0]
[1729519028449,15.3583,162.78,162.64,100.0]
[1729519028658,6.1448,162.74,162.69,6.1463]
[1729519028861,15.3583,162.78,162.68,15.3675]
[1729519029161,6.1451,162.73,162.68,21.5144]
[1729519029453,23.776884,162.73,162.64,100.0]
[1729519029670,6.1473,162.68,162.64,100.0]
[1729519029832,20.0,162.74,162.64,100.0]
[1729519030235,6.1447,162.75,162.69,6.1463]
[1729519030452,6.1447,162.75,162.7,6.1459]
[1729519030647,15.3555,162.81,162.71,6.1456]
[1729519030847,15.3562,162.8,162.71,6.1456]
[1729519031065,6.1442,162.76,162.71,6.1456]
[1729519031434,6.1428,162.79,162.72,6.1453]
[1729519031637,6.4218,162.82,162.65,23.776884]
[1729519031937,6.4218,162.82,162.64,100.0]
[1729519032137,6.1434,162.78,162.73,6.1451]
[1729519032350,15.3553,162.81,162.73,6.1448]
[1729519032557,6.4218,162.82,162.67,23.776884]
[1729519032733,15.3525,162.84,162.67,23.776884]
[1729519032936,15.3525,162.84,162.77,6.1435]
[1729519033252,6.3775,162.88,162.68,6.66809706]
[1729519033567,6.141,162.84,162.79,6.1425]
[1729519034446,6.1398,162.87,162.69,43.83718106]
[1729519034759,0.1,162.95,162.69,43.83718106]
[1729519034760,6.1923,162.94,162.74,0.13970897]
[1729519034940,6.1387,162.91,162.84,6.1407]
[1729519035138,6.1387,162.91,162.74,0.13970897]
[1729519035340,15.3408,162.97,162.77,43.83718106]
[1729519035562,6.1376,162.93,162.87,6.1397]
[1729519035750,6.138,162.92,162.86,6.14]
[1729519035955,15.3408,162.97,162.86,6.14]